[Event "Turkish Women-ch Arzum 2022"]
[Site "Ayvalik"]
[Date "2022.03.09"]
[Round "7.29"]
[White "Bursali, Ela"]
[Black "Bodur, Ilke Lal"]
[Result "1/2-1/2"]
[ECO "C47"]
[WhiteElo "1353"]
[BlackElo "1151"]
[Annotator "NA"]
[PlyCount "52"]
[EventDate "2022.03.04"]
[EventType "swiss"]
[EventCountry "TUR"]
[SourceTitle "playchess.com"]
[Source "ChessBase"]
[SourceQuality "1"]
[TimeControl "5400+30"]

1. e4 {[%emt 0:01:00]} e5 {[%emt 0:01:00]} 2. Nf3 {[%emt 0:00:30]} Nc6 {[%emt 0:00:30]} 3. Nc3 {[%emt 0:00:30]} Nf6 {[%emt 0:00:30]} 4. h3 {[%emt 0:00:00]} Bc5 {[%emt 0:01:30]} 5. Nxe5 {[%emt 0:00:00]} Nxe5 {[%emt 0:01:30]} 6. d4 {[%emt 0:00:00]} Bd6 {[%emt 0:00:30]} 7. dxe5 {[%emt 0:00:00]} Bxe5 {[%emt 0:00:30]} 8. Bd3 {[%emt 0:00:30]} O-O {[%emt 0:01:30]} 9. O-O {[%emt 0:00:00]} h6 {[%emt 0:03:30]} 10. Re1 {[%emt 0:01:00]} d6 {[%emt 0:05:30]} 11. Ne2 {[%emt 0:08:30]} d5 {[%emt 0:11:30]} 12. f4 {[%emt 0:10:30]} dxe4 {[%emt 0:02:30]} 13. fxe5 {[%emt 0:00:30]} exd3 {[%emt 0:00:00]} 14. exf6 {[%emt 0:00:30]} dxe2 {[%emt 0:02:00]} 15. Qxd8 {[%emt 0:00:30]} Rxd8 {[%emt 0:00:30]} 16. fxg7 {[%emt 0:00:30]} Kxg7 {[%emt 0:13:30]} 17. Bf4 {[%emt 0:01:30]} c6 {[%emt 0:01:30]} 18. Rxe2 {[%emt 0:00:30]} Be6 {[%emt 0:00:30]} 19. Be5+ {[%emt 0:02:30]} Kh7 {[%emt 0:01:30]} 20. c3 {[%emt 0:06:30]} Rg8 {[%emt 0:05:30]} 21. Kh2 {[%emt 0:06:30]} Rad8 {[%emt 0:01:30]} 22. Bd4 {[%emt 0:02:30]} a6 {[%emt 0:05:30]} 23. b4 {[%emt 0:07:30]} Rd6 {[%emt 0:06:30]} 24. a4 {[%emt 0:11:30]} Bd5 {[%emt 0:08:30]} 25. g3 {[%emt 0:13:30]} Re6 {[%emt 0:05:30]} 26. Rxe6 {[%emt 0:02:30]} Bxe6 {[%emt 0:00:30]} 1/2-1/2

[Event "Turkish Women-ch Arzum 2022"]
[Site "Ayvalik"]
[Date "2022.03.09"]
[Round "7.30"]
[White "Susin, Derya Defne"]
[Black "Yazici, Zumral"]
[Result "0-1"]
[ECO "D31"]
[WhiteElo "1285"]
[BlackElo "1229"]
[Annotator "NA"]
[PlyCount "67"]
[EventDate "2022.03.04"]
[EventType "swiss"]
[EventCountry "TUR"]
[SourceTitle "playchess.com"]
[Source "ChessBase"]
[SourceQuality "1"]
[TimeControl "5400+30"]

1. d4 {[%emt 0:03:00]} d5 {[%emt 0:01:00]} 2. c4 {[%emt 0:00:30]} e6 {[%emt 0:00:00]} 3. Nc3 {[%emt 0:00:00]} a6 {[%emt 0:00:00]} 4. cxd5 {[%emt 0:00:00]} exd5 {[%emt 0:00:00]} 5. Nf3 {[%emt 0:00:30]} c6 {[%emt 0:00:00]} 6. Bf4 {[%emt 0:00:30]} Nf6 {[%emt 0:02:30]} 7. e3 {[%emt 0:00:30]} Bd6 {[%emt 0:01:30]} 8. Bxd6 {[%emt 0:02:30]} Qxd6 {[%emt 0:00:30]} 9. Bd3 {[%emt 0:00:30]} h6 {[%emt 0:05:30]} 10. O-O {[%emt 0:00:30]} Be6 {[%emt 0:02:30]} 11. a4 {[%emt 0:07:30]} Nbd7 {[%emt 0:03:30]} 12. a5 {[%emt 0:03:30]} O-O {[%emt 0:02:30]} 13. Qe2 {[%emt 0:07:30]} Rfe8 {[%emt 0:05:30]} 14. Rfc1 {[%emt 0:03:30]} Bg4 {[%emt 0:05:30]} 15. Na4 {[%emt 0:08:30]} Ne4 {[%emt 0:04:30]} 16. h3 {[%emt 0:04:30]} Bh5 {[%emt 0:10:30]} 17. g4 {[%emt 0:05:30]} Bg6 {[%emt 0:00:00]} 18. Bxe4 {[%emt 0:01:30]} Rxe4 {[%emt 0:05:00]} 19. Nc5 {[%emt 0:06:30]} Nxc5 {[%emt 0:00:30]} 20. Rxc5 {[%emt 0:01:30]} f5 {[%emt 0:02:30]} 21. Nd2 {[%emt 0:04:30]} Re6 {[%emt 0:04:30]} 22. Nf1 {[%emt 0:05:30]} Rf8 {[%emt 0:08:30]} 23. Nh2 {[%emt 0:06:30]} f4 {[%emt 0:02:30]} 24. Rc3 {[%emt 0:04:30]} Qb4 {[%emt 0:07:30]} 25. Nf3 {[%emt 0:02:30]} fxe3 {[%emt 0:08:25]} 26. fxe3 {[%emt 0:02:33]} Ref6 {[%emt 0:01:40]} 27. Rf1 {[%emt 0:03:32]} Be4 {[%emt 0:05:12]} 28. Nh2 {[%emt 0:02:20]} Rxf1+ {[%emt 0:00:34]} 29. Nxf1 {[%emt 0:00:16]} Qxa5 {[%emt 0:01:43]} 30. Ng3 {[%emt 0:03:15]} Qa1+ {[%emt 0:01:32]} 31. Kh2 {[%emt 0:00:09]} Bf3 {[%emt 0:01:21]} 32. Qc2 {[%emt 0:00:53]} Qe1 {[%emt 0:01:23]} 33. Rb3 {[%emt 0:01:00]} Bd1 {[%emt 0:00:31]} 34. Qg2 {[%emt 0:01:22]} 0-1

[Event "Turkish Women-ch Arzum 2022"]
[Site "Ayvalik"]
[Date "2022.03.09"]
[Round "7.34"]
[White "Topal, Berfin"]
[Black "Kum, Busra"]
[Result "1-0"]
[ECO "A46"]
[WhiteElo "1322"]
[BlackElo "1062"]
[Annotator "NA"]
[PlyCount "115"]
[EventDate "2022.03.04"]
[EventType "swiss"]
[EventCountry "TUR"]
[SourceTitle "playchess.com"]
[Source "ChessBase"]
[SourceQuality "1"]
[TimeControl "5400+30"]

1. d4 {[%emt 0:02:00]} Nf6 {[%emt 0:01:00]} 2. Nf3 {[%emt 0:00:30]} d6 {[%emt 0:00:30]} 3. e3 {[%emt 0:00:30]} Nbd7 {[%emt 0:01:30]} 4. Bd3 {[%emt 0:00:00]} e5 {[%emt 0:01:30]} 5. dxe5 {[%emt 0:01:00]} dxe5 {[%emt 0:00:00]} 6. Bb5 {[%emt 0:00:30]} c6 {[%emt 0:01:00]} 7. Bc4 {[%emt 0:00:30]} Be7 {[%emt 0:01:30]} 8. Nc3 {[%emt 0:04:30]} b5 {[%emt 0:02:30]} 9. Be2 {[%emt 0:05:30]} Qc7 {[%emt 0:03:30]} 10. a3 {[%emt 0:02:30]} a5 {[%emt 0:02:30]} 11. O-O {[%emt 0:01:30]} O-O {[%emt 0:02:30]} 12. b3 {[%emt 0:01:30]} Rd8 {[%emt 0:05:30]} 13. Bb2 {[%emt 0:02:30]} Nc5 {[%emt 0:08:30]} 14. Qc1 {[%emt 0:00:30]} Bg4 {[%emt 0:00:30]} 15. Nd2 {[%emt 0:07:30]} Qd7 {[%emt 0:08:30]} 16. Bxg4 {[%emt 0:04:30]} Nxg4 {[%emt 0:01:30]} 17. Nde4 {[%emt 0:01:30]} Qf5 {[%emt 0:01:30]} 18. Ng3 {[%emt 0:02:30]} Qg6 {[%emt 0:00:30]} 19. h3 {[%emt 0:01:30]} Nh6 {[%emt 0:06:30]} 20. Nce2 {[%emt 0:01:30]} Rd5 {[%emt 0:03:30]} 21. b4 {[%emt 0:08:30]} Na4 {[%emt 0:09:30]} 22. e4 {[%emt 0:01:30]} Bg5 {[%emt 0:06:30]} 23. f4 {[%emt 0:05:30]} exf4 {[%emt 0:01:30]} 24. exd5 {[%emt 0:03:30]} fxg3 {[%emt 0:00:30]} 25. Nf4 {[%emt 0:01:30]} Qe4 {[%emt 0:01:30]} 26. Bxg7 {[%emt 0:08:30]} Kxg7 {[%emt 0:02:30]} 27. Ne6+ {[%emt 0:00:30]} fxe6 {[%emt 0:00:30]} 28. Qxg5+ {[%emt 0:00:30]} Qg6 {[%emt 0:00:30]} 29. Qxg6+ {[%emt 0:00:30]} Kxg6 {[%emt 0:00:30]} 30. dxe6 {[%emt 0:00:30]} Nf5 {[%emt 0:01:30]} 31. Rf3 {[%emt 0:01:30]} axb4 {[%emt 0:05:30]} 32. axb4 {[%emt 0:02:30]} Rd8 {[%emt 0:00:30]} 33. Raf1 {[%emt 0:00:30]} Rd6 {[%emt 0:08:20]} 34. Rxf5 {[%emt 0:00:30]} Rxe6 {[%emt 0:00:32]} 35. R5f3 {[%emt 0:00:30]} h5 {[%emt 0:02:45]} 36. Rxg3+ {[%emt 0:00:00]} Kh6 {[%emt 0:00:28]} 37. Rf8 {[%emt 0:00:00]} Kh7 {[%emt 0:00:48]} 38. Rg5 {[%emt 0:00:30]} Nc3 {[%emt 0:00:48]} 39. Rxh5+ {[%emt 0:00:30]} Kg7 {[%emt 0:00:45]} 40. Rhf5 {[%emt 0:00:30]} Ne4 {[%emt 0:01:06]} 41. h4 {[%emt 0:00:30]} Rh6 {[%emt 0:01:30]} 42. Rf4 {[%emt 0:00:30]} Nf6 {[%emt 0:00:58]} 43. R8xf6 {[%emt 0:00:30]} Rxf6 {[%emt 0:00:30]} 44. Rxf6 {[%emt 0:00:30]} Kxf6 {[%emt 0:00:00]} 45. g4 {[%emt 0:00:00]} Ke5 {[%emt 0:01:22]} 46. h5 {[%emt 0:00:00]} Kf6 {[%emt 0:01:07]} 47. Kf2 {[%emt 0:00:00]} Kg7 {[%emt 0:00:31]} 48. Kf3 {[%emt 0:00:00]} Kh7 {[%emt 0:00:29]} 49. Kf4 {[%emt 0:00:30]} Kh6 {[%emt 0:00:27]} 50. g5+ {[%emt 0:00:00]} Kg7 {[%emt 0:00:31]} 51. Kf5 {[%emt 0:00:00]} Kh7 {[%emt 0:00:30]} 52. g6+ {[%emt 0:00:00]} Kg8 {[%emt 0:00:00]} 53. Kf6 {[%emt 0:00:00]} c5 {[%emt 0:00:18]} 54. h6 {[%emt 0:00:30]} Kh8 {[%emt 0:01:30]} 55. g7+ {[%emt 0:00:00]} Kh7 {[%emt 0:00:28]} 56. Kf7 {[%emt 0:00:00]} c4 {[%emt 0:00:23]} 57. g8=Q+ {[%emt 0:00:30]} Kxh6 {[%emt 0:00:30]} 58. Qg6# {[%emt 0:00:00]} 1-0

[Event "Turkish Women-ch Arzum 2022"]
[Site "Ayvalik"]
[Date "2022.03.10"]
[Round "8.10"]
[White "Alagoz, Zumra Meryem"]
[Black "Demirtas, Hafize"]
[Result "1-0"]
[ECO "C54"]
[WhiteElo "1573"]
[BlackElo "1779"]
[Annotator "NA RC"]
[PlyCount "67"]
[EventDate "2022.03.04"]
[EventType "swiss"]
[EventCountry "TUR"]
[SourceTitle "playchess.com"]
[Source "ChessBase"]
[SourceQuality "1"]
[TimeControl "5400+30"]

1. e4 e5 2. Nf3 Nc6 3. Bc4 {[%emt 0:01:00]} Nf6 {[%emt 0:02:00]} 4. d3 {[%emt 0:00:30]} Bc5 {[%emt 0:00:30]} 5. c3 {[%emt 0:00:30]} a6 {[%emt 0:00:30]} 6. O-O {[%emt 0:04:30]} O-O {[%emt 0:00:30]} 7. d4 {[%emt 0:02:30]} Ba7 {[%emt 0:07:30]} 8. dxe5 {[%emt 0:10:30]} Nxe4 {[%emt 0:02:30]} 9. Bd5 {[%emt 0:03:30]} Nc5 {[%emt 0:01:30]} 10. Bg5 {[%emt 0:08:30]} Qe8 {[%emt 0:02:30]} 11. Re1 {[%emt 0:02:30]} h6 {[%emt 0:04:30]} 12. Qc2 {[%emt 0:13:30]} Ne6 {[%emt 0:01:30]} 13. Bh4 {[%emt 0:05:30]} Ne7 {[%emt 0:03:30]} 14. Be4 {[%emt 0:02:30]} Nc5 {[%emt 0:02:30]} 15. Nbd2 {[%emt 0:04:30]} Kh8 {[%emt 0:04:30]} 16. Nd4 {[%emt 0:04:30]} Nxe4 {[%emt 0:06:30]} 17. Qxe4 {[%emt 0:01:30]} Ng6 {[%emt 0:02:30]} 18. Bg3 {[%emt 0:00:30]} Qd8 {[%emt 0:10:30]} 19. h4 {[%emt 0:02:30]} Ne7 {[%emt 0:00:30]} 20. N2f3 {[%emt 0:03:30]} Rb8 {[%emt 0:02:30]} 21. Rad1 {[%emt 0:04:30]} b5 {[%emt 0:04:30]} 22. h5 {[%emt 0:04:57]} Bb7 {[%emt 0:03:30]} 23. Qg4 {[%emt 0:00:49]} c5 {[%emt 0:00:30]} 24. Nf5 {[%emt 0:01:27]} Nxf5 {[%emt 0:02:30]} 25. Qxf5 {[%emt 0:00:16]} Qa5 {[%emt 0:05:30]} 26. Nh4 {[%emt 0:04:56]} Qxa2 {[%emt 0:14:19]} 27. Rd6 {[%emt 0:02:10]} Kg8 {[%emt 0:06:24]} 28. Qg4 {[%emt 0:00:49]} Kh8 {[%emt 0:03:30]} 29. Nf5 {[%emt 0:02:45]} Rg8 {[%emt 0:02:46]} 30. Qh4 {[%emt 0:00:45]} Kh7 {[%emt 0:04:21]} 31. Qf4 {[%emt 0:00:10]} Rh8 {[%emt 0:00:45]} 32. Rxh6+ {[%emt 0:01:02]} Kg8 {[%emt 0:00:30]} 33. Ne7+ {[%emt 0:00:21]} Kf8 {[%emt 0:00:25]} 34. Ng6+ {[%emt 0:00:13]} 1-0

[Event "Turkish Women-ch Arzum 2022"]
[Site "Ayvalik"]
[Date "2022.03.10"]
[Round "8.11"]
[White "Kalayci, Nino"]
[Black "Kayis, Gulcan Sena"]
[Result "0-1"]
[ECO "A01"]
[WhiteElo "1775"]
[BlackElo "1597"]
[Annotator "NA RC"]
[PlyCount "38"]
[EventDate "2022.03.04"]
[EventType "swiss"]
[EventCountry "TUR"]
[SourceTitle "playchess.com"]
[Source "ChessBase"]
[SourceQuality "1"]
[TimeControl "5400+30"]

1. b3 e5 2. e3 Nc6 3. Bb2 {[%emt 0:01:00]} Nf6 {[%emt 0:02:00]} 4. c4 {[%emt 0:02:30]} d5 {[%emt 0:01:30]} 5. d3 {[%emt 0:08:30]} Bb4+ {[%emt 0:05:30]} 6. Nd2 {[%emt 0:30:30]} dxc4 {[%emt 0:05:30]} 7. bxc4 {[%emt 0:00:30]} Bf5 {[%emt 0:01:30]} 8. e4 {[%emt 0:02:30]} Bg4 {[%emt 0:10:30]} 9. Qc2 {[%emt 0:00:30]} O-O {[%emt 0:01:30]} 10. h3 {[%emt 0:00:30]} Bh5 {[%emt 0:01:30]} 11. g4 {[%emt 0:02:30]} Bg6 {[%emt 0:00:30]} 12. Ne2 {[%emt 0:14:30]} Nxe4 {[%emt 0:06:30]} 13. Bc3 {[%emt 0:28:42]} Nc5 {[%emt 0:12:30]} 14. Ng3 {[%emt 0:04:41]} Bxd3 {[%emt 0:01:30]} 15. Qb2 {[%emt 0:00:33]} Bxf1 {[%emt 0:00:30]} 16. Kxf1 {[%emt 0:00:30]} Qd3+ {[%emt 0:00:00]} 17. Ne2 {[%emt 0:00:19]} Na4 {[%emt 0:00:00]} 18. Qb1 {[%emt 0:00:45]} Qxe2+ {[%emt 0:00:30]} 19. Kxe2 {[%emt 0:00:11]} Nxc3+ {[%emt 0:00:00]} 0-1

[Event "Turkish Women-ch Arzum 2022"]
[Site "Ayvalik"]
[Date "2022.03.10"]
[Round "8.12"]
[White "Incecik, Seyma Zeynep"]
[Black "Karatiken, Beray"]
[Result "0-1"]
[ECO "A01"]
[WhiteElo "1777"]
[BlackElo "1380"]
[Annotator "NA RC"]
[PlyCount "112"]
[EventDate "2022.03.04"]
[EventType "swiss"]
[EventCountry "TUR"]
[SourceTitle "playchess.com"]
[Source "ChessBase"]
[SourceQuality "1"]
[TimeControl "5400+30"]

1. b3 {[%emt 0:03:00]} e5 {[%emt 0:02:00]} 2. Bb2 {[%emt 0:00:30]} d6 {[%emt 0:00:00]} 3. e3 {[%emt 0:00:30]} Nd7 {[%emt 0:01:00]} 4. Nf3 {[%emt 0:00:30]} c6 {[%emt 0:00:30]} 5. d4 {[%emt 0:00:30]} Qc7 {[%emt 0:00:30]} 6. c4 {[%emt 0:01:30]} Ngf6 {[%emt 0:02:30]} 7. Nc3 {[%emt 0:00:30]} Be7 {[%emt 0:01:30]} 8. Be2 {[%emt 0:00:30]} h6 {[%emt 0:01:30]} 9. Rc1 {[%emt 0:00:30]} Nf8 {[%emt 0:05:30]} 10. O-O {[%emt 0:06:30]} g5 {[%emt 0:03:30]} 11. dxe5 {[%emt 0:03:30]} dxe5 {[%emt 0:00:30]} 12. Nxe5 {[%emt 0:00:30]} Bd6 {[%emt 0:09:30]} 13. Nf3 {[%emt 0:10:30]} g4 {[%emt 0:03:30]} 14. c5 {[%emt 0:04:30]} gxf3 {[%emt 0:04:30]} 15. cxd6 {[%emt 0:00:30]} fxe2 {[%emt 0:01:30]} 16. Qxe2 {[%emt 0:00:30]} Qxd6 {[%emt 0:01:30]} 17. Ne4 {[%emt 0:00:30]} Nxe4 {[%emt 0:01:30]} 18. Bxh8 {[%emt 0:00:30]} Bd7 {[%emt 0:00:30]} 19. Rfd1 {[%emt 0:00:30]} Qg6 {[%emt 0:01:30]} 20. f3 {[%emt 0:01:30]} Ng5 {[%emt 0:03:30]} 21. Be5 {[%emt 0:01:30]} O-O-O {[%emt 0:05:30]} 22. b4 {[%emt 0:03:30]} Re8 {[%emt 0:04:30]} 23. Bg3 {[%emt 0:02:30]} f5 {[%emt 0:03:30]} 24. Rd6 {[%emt 0:11:30]} Qg7 {[%emt 0:02:30]} 25. Kh1 {[%emt 0:03:30]} Nf7 {[%emt 0:03:30]} 26. Rd2 {[%emt 0:01:30]} Qg5 {[%emt 0:04:30]} 27. Bf4 {[%emt 0:00:30]} Qe7 {[%emt 0:01:30]} 28. b5 {[%emt 0:02:30]} Ng6 {[%emt 0:01:30]} 29. bxc6 {[%emt 0:09:30]} Bxc6 {[%emt 0:01:30]} 30. Rxc6+ {[%emt 0:07:30]} bxc6 {[%emt 0:03:30]} 31. Qa6+ {[%emt 0:00:30]} Qb7 {[%emt 0:00:30]} 32. Qxb7+ {[%emt 0:00:30]} Kxb7 {[%emt 0:00:30]} 33. Rd7+ {[%emt 0:00:00]} Ka6 {[%emt 0:00:30]} 34. Rxf7 {[%emt 0:00:00]} Nxf4 {[%emt 0:00:00]} 35. g3 {[%emt 0:00:30]} Nd5 {[%emt 0:01:00]} 36. Rxf5 {[%emt 0:00:30]} Rxe3 {[%emt 0:00:00]} 37. Rh5 {[%emt 0:00:00]} Rxf3 {[%emt 0:00:00]} 38. Rxh6 {[%emt 0:00:00]} Kb6 {[%emt 0:00:30]} 39. g4 {[%emt 0:00:30]} Ne3 {[%emt 0:01:30]} 40. h3 {[%emt 0:00:30]} Rf1+ {[%emt 0:00:30]} 41. Kh2 {[%emt 0:00:30]} Rf2+ {[%emt 0:00:00]} 42. Kg3 {[%emt 0:00:30]} Rxa2 {[%emt 0:00:00]} 43. Kf4 {[%emt 0:00:00]} Nd5+ {[%emt 0:00:30]} 44. Kf5 {[%emt 0:00:00]} Rf2+ {[%emt 0:00:30]} 45. Ke5 {[%emt 0:00:30]} a5 {[%emt 0:00:00]} 46. g5 {[%emt 0:00:30]} a4 {[%emt 0:01:00]} 47. Rh8 {[%emt 0:00:00]} Rg2 {[%emt 0:01:30]} 48. h4 {[%emt 0:01:00]} a3 {[%emt 0:00:30]} 49. Kf5 {[%emt 0:00:30]} a2 {[%emt 0:00:30]} 50. Ra8 {[%emt 0:00:30]} Nc7 {[%emt 0:00:00]} 51. Ra3 {[%emt 0:00:00]} Nb5 {[%emt 0:00:00]} 52. Ra4 {[%emt 0:00:00]} Nd6+ {[%emt 0:01:30]} 53. Kf6 {[%emt 0:00:30]} Kb5 {[%emt 0:00:30]} 54. Ra8 {[%emt 0:00:30]} Nc4 {[%emt 0:01:30]} 55. g6 {[%emt 0:00:30]} Na5 {[%emt 0:00:30]} 56. g7 {[%emt 0:00:30]} a1=Q+ {[%emt 0:00:00]} 0-1

[Event "Turkish Women-ch Arzum 2022"]
[Site "Ayvalik"]
[Date "2022.03.10"]
[Round "8.13"]
[White "Karatiken, Seray"]
[Black "Zengin, Ovgu"]
[Result "1-0"]
[ECO "D05"]
[WhiteElo "1717"]
[BlackElo "1475"]
[Annotator "NA RC"]
[PlyCount "51"]
[EventDate "2022.03.04"]
[EventType "swiss"]
[EventCountry "TUR"]
[SourceTitle "playchess.com"]
[Source "ChessBase"]
[SourceQuality "1"]
[TimeControl "5400+30"]

1. d4 {[%emt 0:03:00]} d5 {[%emt 0:01:00]} 2. Nf3 {[%emt 0:00:30]} Nf6 {[%emt 0:00:00]} 3. e3 {[%emt 0:00:30]} e6 {[%emt 0:00:00]} 4. Bd3 {[%emt 0:00:00]} c5 {[%emt 0:00:30]} 5. b3 {[%emt 0:00:00]} Be7 {[%emt 0:01:30]} 6. O-O {[%emt 0:01:30]} O-O {[%emt 0:00:30]} 7. Bb2 {[%emt 0:00:30]} b6 {[%emt 0:00:30]} 8. Nbd2 {[%emt 0:00:00]} Ba6 {[%emt 0:00:30]} 9. c4 {[%emt 0:00:00]} Nbd7 {[%emt 0:00:30]} 10. Ne5 {[%emt 0:01:30]} Bb7 {[%emt 0:00:30]} 11. Qc2 {[%emt 0:05:30]} h6 {[%emt 0:02:30]} 12. f4 {[%emt 0:00:30]} Rc8 {[%emt 0:02:30]} 13. f5 {[%emt 0:05:30]} exf5 {[%emt 0:14:30]} 14. Bxf5 {[%emt 0:01:30]} dxc4 {[%emt 0:05:30]} 15. bxc4 {[%emt 0:01:30]} cxd4 {[%emt 0:11:30]} 16. exd4 {[%emt 0:03:30]} Ra8 {[%emt 0:09:30]} 17. Ndf3 {[%emt 0:07:30]} Nxe5 {[%emt 0:04:30]} 18. dxe5 {[%emt 0:03:30]} Bc5+ {[%emt 0:02:30]} 19. Kh1 {[%emt 0:00:00]} Ne8 {[%emt 0:04:30]} 20. Rad1 {[%emt 0:03:00]} Qb8 {[%emt 0:04:30]} 21. Nh4 {[%emt 0:01:30]} g5 {[%emt 0:07:30]} 22. Bh7+ {[%emt 0:06:30]} Kg7 {[%emt 0:01:30]} 23. e6+ {[%emt 0:00:30]} f6 {[%emt 0:00:30]} 24. Rd7+ {[%emt 0:00:30]} Be7 {[%emt 0:02:30]} 25. Rxe7+ {[%emt 0:00:30]} Kh8 {[%emt 0:00:30]} 26. Ng6# {[%emt 0:00:00]} 1-0

[Event "Turkish Women-ch Arzum 2022"]
[Site "Ayvalik"]
[Date "2022.03.10"]
[Round "8.14"]
[White "Kipik, Feyza"]
[Black "Engin, Cagla"]
[Result "1-0"]
[ECO "B06"]
[WhiteElo "1603"]
[BlackElo "1436"]
[Annotator "NA RC"]
[PlyCount "51"]
[EventDate "2022.03.04"]
[EventType "swiss"]
[EventCountry "TUR"]
[SourceTitle "playchess.com"]
[Source "ChessBase"]
[SourceQuality "1"]
[TimeControl "5400+30"]

1. e4 {[%emt 0:03:00]} d6 {[%emt 0:01:00]} 2. d4 {[%emt 0:00:30]} g6 {[%emt 0:00:00]} 3. Nf3 {[%emt 0:00:00]} Bg7 {[%emt 0:00:00]} 4. c3 {[%emt 0:00:00]} Nd7 {[%emt 0:01:30]} 5. Bd3 {[%emt 0:01:30]} e6 {[%emt 0:03:30]} 6. O-O {[%emt 0:00:30]} Ne7 {[%emt 0:00:30]} 7. Nbd2 {[%emt 0:02:30]} b6 {[%emt 0:02:30]} 8. a4 {[%emt 0:03:30]} a5 {[%emt 0:02:30]} 9. Re1 {[%emt 0:08:30]} O-O {[%emt 0:01:30]} 10. Nf1 {[%emt 0:10:30]} Bb7 {[%emt 0:04:30]} 11. Ng3 {[%emt 0:03:30]} c5 {[%emt 0:09:30]} 12. Be3 {[%emt 0:08:30]} Rc8 {[%emt 0:05:30]} 13. Qd2 {[%emt 0:09:30]} cxd4 {[%emt 0:05:30]} 14. cxd4 {[%emt 0:00:30]} Nc6 {[%emt 0:02:30]} 15. Bg5 {[%emt 0:04:30]} Bf6 {[%emt 0:07:30]} 16. Bh6 {[%emt 0:12:30]} Bg7 {[%emt 0:02:30]} 17. Rac1 {[%emt 0:06:30]} Nb4 {[%emt 0:05:30]} 18. Bb5 {[%emt 0:00:30]} Rxc1 {[%emt 0:07:30]} 19. Rxc1 {[%emt 0:00:30]} Nf6 {[%emt 0:00:30]} 20. Bxg7 {[%emt 0:03:35]} Kxg7 {[%emt 0:01:30]} 21. Qf4 {[%emt 0:00:25]} Qe7 {[%emt 0:06:30]} 22. Nd2 {[%emt 0:01:10]} Rd8 {[%emt 0:09:30]} 23. Qg5 {[%emt 0:04:09]} h6 {[%emt 0:00:30]} 24. Nh5+ {[%emt 0:00:33]} Kh7 {[%emt 0:04:42]} 25. Nxf6+ {[%emt 0:00:46]} Kh8 {[%emt 0:00:18]} 26. Qxh6# {[%emt 0:00:00]} 1-0

[Event "Turkish Women-ch Arzum 2022"]
[Site "Ayvalik"]
[Date "2022.03.10"]
[Round "8.15"]
[White "Aydogan, Arya"]
[Black "Salt, Ilayda"]
[Result "1-0"]
[ECO "B30"]
[WhiteElo "1328"]
[BlackElo "1594"]
[Annotator "NA RC"]
[PlyCount "92"]
[EventDate "2022.03.04"]
[EventType "swiss"]
[EventCountry "TUR"]
[SourceTitle "playchess.com"]
[Source "ChessBase"]
[SourceQuality "1"]
[TimeControl "5400+30"]

1. e4 c5 2. Nf3 Nc6 3. Bb5 a6 {[%emt 0:02:00]} 4. Bxc6 {[%emt 0:01:30]} dxc6 {[%emt 0:00:30]} 5. O-O {[%emt 0:00:30]} Bg4 {[%emt 0:00:00]} 6. h3 {[%emt 0:04:30]} Bh5 {[%emt 0:00:00]} 7. d3 {[%emt 0:00:30]} e6 {[%emt 0:00:30]} 8. Nbd2 {[%emt 0:02:30]} Bd6 {[%emt 0:00:30]} 9. b3 {[%emt 0:04:30]} Qf6 {[%emt 0:11:30]} 10. Rb1 {[%emt 0:05:30]} Ne7 {[%emt 0:09:30]} 11. g4 {[%emt 0:18:30]} Bxg4 {[%emt 0:03:30]} 12. hxg4 {[%emt 0:02:30]} Qf4 {[%emt 0:00:30]} 13. Re1 {[%emt 0:08:30]} Qxg4+ {[%emt 0:00:30]} 14. Kf1 {[%emt 0:00:30]} Ng6 {[%emt 0:03:30]} 15. Nc4 {[%emt 0:01:30]} Bc7 {[%emt 0:10:30]} 16. Ng1 {[%emt 0:06:30]} Qh4 {[%emt 0:04:30]} 17. Be3 {[%emt 0:03:30]} b5 {[%emt 0:04:30]} 18. Nd2 {[%emt 0:01:30]} Qe7 {[%emt 0:04:30]} 19. Ndf3 {[%emt 0:06:30]} h5 {[%emt 0:02:30]} 20. Qd2 {[%emt 0:02:30]} h4 {[%emt 0:02:30]} 21. Nh3 {[%emt 0:00:30]} b4 {[%emt 0:06:30]} 22. d4 {[%emt 0:05:30]} cxd4 {[%emt 0:06:30]} 23. Qxd4 {[%emt 0:01:30]} e5 {[%emt 0:02:30]} 24. Qc4 {[%emt 0:04:46]} Qf6 {[%emt 0:04:30]} 25. Bg5 {[%emt 0:02:29]} Qe6 {[%emt 0:00:30]} 26. Qxe6+ {[%emt 0:00:40]} fxe6 {[%emt 0:00:30]} 27. Rbd1 {[%emt 0:01:27]} c5 {[%emt 0:00:30]} 28. Rd2 {[%emt 0:01:52]} Rf8 {[%emt 0:03:43]} 29. Kg2 {[%emt 0:00:56]} Bd8 {[%emt 0:00:31]} 30. Red1 {[%emt 0:02:24]} Bxg5 {[%emt 0:03:16]} 31. Nfxg5 {[%emt 0:00:50]} Nf4+ {[%emt 0:05:03]} 32. Nxf4 {[%emt 0:00:14]} Rxf4 {[%emt 0:00:00]} 33. Nxe6 {[%emt 0:01:31]} Rf7 {[%emt 0:00:04]} 34. Nxc5 {[%emt 0:02:02]} g5 {[%emt 0:02:44]} 35. Rd5 {[%emt 0:01:23]} Re7 {[%emt 0:00:42]} 36. Nd3 {[%emt 0:00:54]} Rc8 {[%emt 0:00:47]} 37. Rd2 {[%emt 0:00:15]} Kf7 {[%emt 0:01:17]} 38. Nxe5+ {[%emt 0:01:05]} Kf6 {[%emt 0:01:21]} 39. Ng4+ {[%emt 0:00:51]} Kg6 {[%emt 0:00:24]} 40. Rd6+ {[%emt 0:00:23]} Kg7 {[%emt 0:00:21]} 41. Rd7 {[%emt 0:01:30]} Rxd7 {[%emt 0:01:33]} 42. Rxd7+ {[%emt 0:00:30]} Kg6 {[%emt 0:00:00]} 43. Ne3 {[%emt 0:00:13]} Rc6 {[%emt 0:00:14]} 44. Nc4 {[%emt 0:00:43]} Kh5 {[%emt 0:00:26]} 45. Rh7+ {[%emt 0:02:02]} Kg6 {[%emt 0:01:06]} 46. Ne5+ {[%emt 0:00:12]} Kxh7 {[%emt 0:00:18]} 1-0